[Event "Titled Tuesday Blitz July 18 Early 2023"]
[White "NicolaiMaxime"]
[Black "Saucey, Michel"]
[BlackFideId "601845"]
[WhiteElo "2573"]
[BlackElo "2325"]
[Result "1-0"]
[Round "9"]
[TimeControl "180+2"]
[Date "2023.07.18"]
[WhiteClock "0:01:43"]
[BlackClock "0:00:00"]
[Board "116"]

1. e4 {[%clk 0:02:59]}  c5 {[%clk 0:02:59]} 2. Nf3 {[%clk 0:02:59]}  e6 {[%clk 0:02:58]} 3. b3 {[%clk 0:02:59]}  Nc6 {[%clk 0:02:58]} 4. Bb2 {[%clk 0:02:59]}  a6 {[%clk 0:02:56]} 5. g3 {[%clk 0:02:57]}  Nf6 {[%clk 0:02:52]} 6. d3 {[%clk 0:02:56]}  d5 {[%clk 0:02:48]} 7. exd5 {[%clk 0:02:55]}  exd5 {[%clk 0:02:46]} 8. Bg2 {[%clk 0:02:55]}  Be7 {[%clk 0:02:45]} 9. O-O {[%clk 0:02:55]}  d4 {[%clk 0:02:42]} 10. Nbd2 {[%clk 0:02:54]}  O-O {[%clk 0:02:41]} 11. h3 {[%clk 0:02:54]}  h6 {[%clk 0:02:37]} 12. Re1 {[%clk 0:02:54]}  Be6 {[%clk 0:02:36]} 13. Kh2 {[%clk 0:02:53]}  Re8 {[%clk 0:02:34]} 14. Qe2 {[%clk 0:02:47]}  Bd6 {[%clk 0:02:32]} 15. Qf1 {[%clk 0:02:47]}  Bc7 {[%clk 0:02:22]} 16. Ne4 {[%clk 0:02:44]}  Nd7 {[%clk 0:02:18]} 17. Re2 {[%clk 0:02:42]}  f5 {[%clk 0:02:07]} 18. Ned2 {[%clk 0:02:38]}  f4 {[%clk 0:02:01]} 19. g4 {[%clk 0:02:36]}  h5 {[%clk 0:01:46]} 20. Rae1 {[%clk 0:02:36]}  hxg4 {[%clk 0:01:40]} 21. hxg4 {[%clk 0:02:22]}  Nde5 {[%clk 0:01:15]} 22. Nxe5 {[%clk 0:02:22]}  Nxe5 {[%clk 0:01:14]} 23. Rxe5 {[%clk 0:02:18]}  Qh4+ {[%clk 0:01:08]} 24. Kg1 {[%clk 0:02:17]}  Bxe5 {[%clk 0:01:01]} 25. Nf3 {[%clk 0:02:15]}  Qxg4 {[%clk 0:00:48]} 26. Rxe5 {[%clk 0:02:15]}  Bf7 {[%clk 0:00:41]} 27. Rxc5 {[%clk 0:02:11]}  Rad8 {[%clk 0:00:35]} 28. Rg5 {[%clk 0:02:07]}  Qc8 {[%clk 0:00:32]} 29. Bxd4 {[%clk 0:02:04]}  g6 {[%clk 0:00:27]} 30. c3 {[%clk 0:02:02]}  Rd5 {[%clk 0:00:21]} 31. Ne5 {[%clk 0:02:01]}  Rb5 {[%clk 0:00:09]} 32. Nxf7 {[%clk 0:01:56]}  Kxf7 {[%clk 0:00:08]} 33. Rxb5 {[%clk 0:01:54]}  axb5 {[%clk 0:00:07]} 34. Bh3 {[%clk 0:01:54]}  Qc6 {[%clk 0:00:06]} 35. Qg2 {[%clk 0:01:54]}  Qxg2+ {[%clk 0:00:03]} 36. Kxg2 {[%clk 0:01:53]}  Re2 {[%clk 0:00:03]} 37. a4 {[%clk 0:01:52]}  Rb2 {[%clk 0:00:03]} 38. axb5 {[%clk 0:01:49]}  Rxb3 {[%clk 0:00:02]} 39. Bd7 {[%clk 0:01:49]}  g5 {[%clk 0:00:01]} 40. b6 {[%clk 0:01:42]}  Rb2 {[%clk 0:00:01]} 41. Bc8 {[%clk 0:01:42]}  Rd2 {[%clk 0:00:01]} 42. Bxb7 {[%clk 0:01:42]}  Rxd3 {[%clk 0:00:01]} 43. Bd5+ {[%clk 0:01:43]}  Ke7 {[%clk 0:00:00]} 44. b7 {[%clk 0:01:43]} 1-0


[Site "https://www.chess.com"]

[Event "Titled Tuesday Blitz July 18 Early 2023"]
[White "Holtel, Jasper"]
[Black "Girya, Olga"]
[WhiteFideId "12956376"]
[BlackFideId "4195752"]
[WhiteElo "2308"]
[BlackElo "2508"]
[Result "0-1"]
[Round "9"]
[TimeControl "180+2"]
[Date "2023.07.18"]
[WhiteClock "0:00:08"]
[BlackClock "0:00:02"]
[Board "119"]

1. e4 {[%clk 0:03:00]}  e5 {[%clk 0:03:00]} 2. Nf3 {[%clk 0:03:00]}  Nc6 {[%clk 0:03:00]} 3. d4 {[%clk 0:03:00]}  exd4 {[%clk 0:03:00]} 4. Nxd4 {[%clk 0:03:01]}  Nf6 {[%clk 0:03:00]} 5. Nxc6 {[%clk 0:03:00]}  bxc6 {[%clk 0:03:00]} 6. Bd3 {[%clk 0:03:00]}  d5 {[%clk 0:02:59]} 7. O-O {[%clk 0:03:00]}  Be7 {[%clk 0:02:56]} 8. Nc3 {[%clk 0:02:57]}  O-O {[%clk 0:02:46]} 9. e5 {[%clk 0:02:50]}  Ng4 {[%clk 0:02:45]} 10. Bf4 {[%clk 0:02:31]}  f6 {[%clk 0:02:36]} 11. exf6 {[%clk 0:02:25]}  Bxf6 {[%clk 0:02:35]} 12. Bg3 {[%clk 0:02:21]}  Be5 {[%clk 0:02:18]} 13. Bxe5 {[%clk 0:02:18]}  Nxe5 {[%clk 0:02:17]} 14. Bxh7+ {[%clk 0:02:08]}  Kxh7 {[%clk 0:02:18]} 15. Qh5+ {[%clk 0:02:08]}  Kg8 {[%clk 0:02:18]} 16. Qxe5 {[%clk 0:02:09]}  Bf5 {[%clk 0:02:15]} 17. Qe2 {[%clk 0:01:43]}  Qe8 {[%clk 0:02:09]} 18. Qxe8 {[%clk 0:01:10]}  Rfxe8 {[%clk 0:02:10]} 19. f3 {[%clk 0:01:02]}  d4 {[%clk 0:01:23]} 20. Ne4 {[%clk 0:01:00]}  Bxe4 {[%clk 0:01:23]} 21. fxe4 {[%clk 0:01:01]}  Rxe4 {[%clk 0:01:24]} 22. Rae1 {[%clk 0:01:00]}  Rae8 {[%clk 0:01:20]} 23. Rxe4 {[%clk 0:01:00]}  Rxe4 {[%clk 0:01:20]} 24. Kf2 {[%clk 0:01:00]}  Kf7 {[%clk 0:01:11]} 25. Re1 {[%clk 0:00:57]}  Rf4+ {[%clk 0:01:07]} 26. Ke2 {[%clk 0:00:55]}  Ke6 {[%clk 0:00:47]} 27. g3 {[%clk 0:00:48]}  Re4+ {[%clk 0:00:34]} 28. Kd2 {[%clk 0:00:48]}  Kd5 {[%clk 0:00:34]} 29. Rf1 {[%clk 0:00:34]}  Re7 {[%clk 0:00:20]} 30. Rf5+ {[%clk 0:00:33]}  Kd6 {[%clk 0:00:19]} 31. Ra5 {[%clk 0:00:33]}  Rf7 {[%clk 0:00:15]} 32. Rxa7 {[%clk 0:00:28]}  Rf2+ {[%clk 0:00:13]} 33. Kd3 {[%clk 0:00:29]}  c5 {[%clk 0:00:14]} 34. Ra6+ {[%clk 0:00:27]}  Kd5 {[%clk 0:00:12]} 35. c4+ {[%clk 0:00:23]}  dxc3 {[%clk 0:00:12]} 36. bxc3 {[%clk 0:00:23]}  c4+ {[%clk 0:00:11]} 37. Ke3 {[%clk 0:00:23]}  Rxh2 {[%clk 0:00:11]} 38. Ra5+ {[%clk 0:00:21]}  c5 {[%clk 0:00:10]} 39. Ra8 {[%clk 0:00:19]}  Rc2 {[%clk 0:00:10]} 40. Rd8+ {[%clk 0:00:19]}  Kc6 {[%clk 0:00:09]} 41. Rc8+ {[%clk 0:00:16]}  Kb6 {[%clk 0:00:08]} 42. Rb8+ {[%clk 0:00:15]}  Kc6 {[%clk 0:00:07]} 43. Rc8+ {[%clk 0:00:15]}  Kd6 {[%clk 0:00:06]} 44. Rg8 {[%clk 0:00:14]}  Rxc3+ {[%clk 0:00:06]} 45. Kf4 {[%clk 0:00:13]}  Ra3 {[%clk 0:00:05]} 46. Rxg7 {[%clk 0:00:13]}  c3 {[%clk 0:00:06]} 47. Ke3 {[%clk 0:00:12]}  c2+ {[%clk 0:00:02]} 48. Kd2 {[%clk 0:00:12]}  Rxa2 {[%clk 0:00:03]} 49. Kc1 {[%clk 0:00:12]}  Kd5 {[%clk 0:00:03]} 50. Rg4 {[%clk 0:00:12]}  c4 {[%clk 0:00:02]} 51. Rf4 {[%clk 0:00:12]}  Kc5 {[%clk 0:00:03]} 52. Rf2 {[%clk 0:00:12]}  Ra1+ {[%clk 0:00:03]} 53. Kb2 {[%clk 0:00:08]}  c1=Q# {[%clk 0:00:02]} 0-1


[Site "https://www.chess.com"]

[Event "Titled Tuesday Blitz July 18 Early 2023"]
[White "Borrmann, Laurenz"]
[Black "Zaksaite, Salomeja"]
[WhiteFideId "312187930"]
[BlackFideId "12801496"]
[WhiteElo "2495"]
[BlackElo "2299"]
[Result "1-0"]
[Round "9"]
[TimeControl "180+2"]
[Date "2023.07.18"]
[WhiteClock "0:00:37"]
[BlackClock "0:01:05"]
[Board "120"]

1. d4 {[%clk 0:03:00]}  Nf6 {[%clk 0:02:53]} 2. c4 {[%clk 0:03:00]}  g6 {[%clk 0:02:52]} 3. Nc3 {[%clk 0:02:54]}  Bg7 {[%clk 0:02:44]} 4. e4 {[%clk 0:02:54]}  d6 {[%clk 0:02:44]} 5. h3 {[%clk 0:02:54]}  O-O {[%clk 0:02:40]} 6. Be3 {[%clk 0:02:44]}  c5 {[%clk 0:02:28]} 7. Nf3 {[%clk 0:02:38]}  Nc6 {[%clk 0:02:25]} 8. d5 {[%clk 0:02:23]}  Nb8 {[%clk 0:02:21]} 9. Be2 {[%clk 0:02:05]}  e6 {[%clk 0:02:19]} 10. O-O {[%clk 0:02:04]}  exd5 {[%clk 0:02:18]} 11. cxd5 {[%clk 0:01:59]}  Re8 {[%clk 0:02:16]} 12. Nd2 {[%clk 0:01:59]}  Nbd7 {[%clk 0:02:11]} 13. Nc4 {[%clk 0:01:44]}  Nxe4 {[%clk 0:01:58]} 14. Nxe4 {[%clk 0:01:42]}  Rxe4 {[%clk 0:01:58]} 15. Nxd6 {[%clk 0:01:43]}  Rxe3 {[%clk 0:01:39]} 16. fxe3 {[%clk 0:01:36]}  Bxb2 {[%clk 0:01:39]} 17. Rb1 {[%clk 0:01:33]}  Be5 {[%clk 0:01:38]} 18. Nxf7 {[%clk 0:01:24]}  Qe7 {[%clk 0:01:37]} 19. d6 {[%clk 0:01:12]}  Qe6 {[%clk 0:01:24]} 20. Bg4 {[%clk 0:00:38]}  Qxa2 {[%clk 0:01:05]} 21. Bxd7 {[%clk 0:00:37]} 1-0


[Site "https://www.chess.com"]

[Event "Titled Tuesday Blitz July 18 Early 2023"]
[White "Mikhaylova, Irina"]
[Black "Horak, Martin"]
[WhiteFideId "4109040"]
[BlackFideId "367095"]
[WhiteElo "2298"]
[BlackElo "2492"]
[Result "1-0"]
[Round "9"]
[TimeControl "180+2"]
[Date "2023.07.18"]
[WhiteClock "0:00:20"]
[BlackClock "0:00:16"]
[Board "121"]

1. d4 {[%clk 0:02:59]}  Nf6 {[%clk 0:03:00]} 2. Nf3 {[%clk 0:02:59]}  d5 {[%clk 0:03:00]} 3. c4 {[%clk 0:02:59]}  e6 {[%clk 0:03:00]} 4. Nc3 {[%clk 0:02:59]}  Bb4 {[%clk 0:03:00]} 5. Bg5 {[%clk 0:02:59]}  h6 {[%clk 0:03:00]} 6. Bxf6 {[%clk 0:02:59]}  Qxf6 {[%clk 0:03:01]} 7. cxd5 {[%clk 0:02:59]}  exd5 {[%clk 0:03:00]} 8. Rc1 {[%clk 0:03:00]}  O-O {[%clk 0:02:58]} 9. a3 {[%clk 0:03:00]}  Bxc3+ {[%clk 0:02:57]} 10. Rxc3 {[%clk 0:03:01]}  c6 {[%clk 0:02:53]} 11. e3 {[%clk 0:03:01]}  a5 {[%clk 0:02:51]} 12. Be2 {[%clk 0:02:55]}  Bf5 {[%clk 0:02:39]} 13. O-O {[%clk 0:02:55]}  Nd7 {[%clk 0:02:33]} 14. b4 {[%clk 0:02:33]}  axb4 {[%clk 0:02:33]} 15. axb4 {[%clk 0:02:33]}  b5 {[%clk 0:02:24]} 16. Bd3 {[%clk 0:02:20]}  Bg4 {[%clk 0:02:23]} 17. Be2 {[%clk 0:02:17]}  Bxf3 {[%clk 0:02:22]} 18. Bxf3 {[%clk 0:02:17]}  Nb6 {[%clk 0:02:21]} 19. Be2 {[%clk 0:02:13]}  Ra4 {[%clk 0:02:12]} 20. Qc2 {[%clk 0:02:11]}  Rxb4 {[%clk 0:01:51]} 21. Rxc6 {[%clk 0:02:10]}  Qd8 {[%clk 0:01:52]} 22. Qc5 {[%clk 0:01:42]}  Rb2 {[%clk 0:01:43]} 23. Rxb6 {[%clk 0:01:30]}  Rxe2 {[%clk 0:01:41]} 24. Rxb5 {[%clk 0:01:30]}  Re8 {[%clk 0:01:37]} 25. Qxd5 {[%clk 0:01:29]}  Qf6 {[%clk 0:01:37]} 26. Ra5 {[%clk 0:01:08]}  Qg6 {[%clk 0:01:31]} 27. Ra8 {[%clk 0:01:03]}  Rxa8 {[%clk 0:01:26]} 28. Qxa8+ {[%clk 0:01:03]}  Kh7 {[%clk 0:01:27]} 29. Qf3 {[%clk 0:01:01]}  Qd3 {[%clk 0:01:25]} 30. g3 {[%clk 0:00:43]}  f6 {[%clk 0:01:21]} 31. g4 {[%clk 0:00:39]}  Kg6 {[%clk 0:01:00]} 32. Kg2 {[%clk 0:00:38]}  Ra2 {[%clk 0:00:59]} 33. Qf5+ {[%clk 0:00:29]}  Qxf5 {[%clk 0:00:59]} 34. gxf5+ {[%clk 0:00:30]}  Kxf5 {[%clk 0:00:58]} 35. Kf3 {[%clk 0:00:29]}  Ra3 {[%clk 0:00:59]} 36. Rd1 {[%clk 0:00:27]}  g5 {[%clk 0:00:52]} 37. h4 {[%clk 0:00:21]}  g4+ {[%clk 0:00:52]} 38. Kg3 {[%clk 0:00:20]}  Ra6 {[%clk 0:00:46]} 39. Rb1 {[%clk 0:00:17]}  h5 {[%clk 0:00:43]} 40. Rb5+ {[%clk 0:00:18]}  Kg6 {[%clk 0:00:44]} 41. f3 {[%clk 0:00:18]}  Ra3 {[%clk 0:00:43]} 42. Kf4 {[%clk 0:00:18]}  g3 {[%clk 0:00:42]} 43. Rb2 {[%clk 0:00:17]}  f5 {[%clk 0:00:34]} 44. Rg2 {[%clk 0:00:17]}  Kf6 {[%clk 0:00:34]} 45. Rxg3 {[%clk 0:00:18]}  Ra1 {[%clk 0:00:33]} 46. Rg5 {[%clk 0:00:18]}  Ra7 {[%clk 0:00:26]} 47. Rxh5 {[%clk 0:00:17]}  Kg6 {[%clk 0:00:25]} 48. Rg5+ {[%clk 0:00:17]}  Kh6 {[%clk 0:00:25]} 49. Rxf5 {[%clk 0:00:17]}  Kg6 {[%clk 0:00:24]} 50. Rg5+ {[%clk 0:00:17]}  Kh6 {[%clk 0:00:23]} 51. d5 {[%clk 0:00:17]}  Ra5 {[%clk 0:00:21]} 52. e4 {[%clk 0:00:17]}  Ra1 {[%clk 0:00:20]} 53. Rf5 {[%clk 0:00:17]}  Kg6 {[%clk 0:00:19]} 54. d6 {[%clk 0:00:17]}  Rd1 {[%clk 0:00:18]} 55. Rd5 {[%clk 0:00:18]}  Ra1 {[%clk 0:00:11]} 56. d7 {[%clk 0:00:17]}  Ra8 {[%clk 0:00:12]} 57. d8=Q {[%clk 0:00:17]}  Rxd8 {[%clk 0:00:13]} 58. Rxd8 {[%clk 0:00:18]}  Kf6 {[%clk 0:00:13]} 59. Rd5 {[%clk 0:00:18]}  Ke6 {[%clk 0:00:14]} 60. Rg5 {[%clk 0:00:18]}  Kf6 {[%clk 0:00:14]} 61. h5 {[%clk 0:00:19]}  Kf7 {[%clk 0:00:15]} 62. h6 {[%clk 0:00:19]}  Kf6 {[%clk 0:00:16]} 63. h7 {[%clk 0:00:20]}  Kf7 {[%clk 0:00:16]} 64. h8=Q {[%clk 0:00:20]} 1-0


[Site "https://www.chess.com"]

[Event "Titled Tuesday Blitz July 18 Early 2023"]
[White "Ljukin, Sergei"]
[Black "Akhayan, Ruben"]
[WhiteFideId "14102200"]
[BlackFideId "204439"]
[WhiteElo "2460"]
[BlackElo "2288"]
[Result "1-0"]
[Round "9"]
[TimeControl "180+2"]
[Date "2023.07.18"]
[WhiteClock "0:00:24"]
[BlackClock "0:00:15"]
[Board "123"]

1. e4 {[%clk 0:02:45]}  e5 {[%clk 0:02:58]} 2. Nf3 {[%clk 0:02:45]}  Nc6 {[%clk 0:02:58]} 3. Bb5 {[%clk 0:02:45]}  a6 {[%clk 0:02:58]} 4. Ba4 {[%clk 0:02:46]}  Nf6 {[%clk 0:02:58]} 5. Qe2 {[%clk 0:02:46]}  b5 {[%clk 0:02:56]} 6. Bb3 {[%clk 0:02:46]}  Be7 {[%clk 0:02:56]} 7. c3 {[%clk 0:02:46]}  O-O {[%clk 0:02:57]} 8. O-O {[%clk 0:02:47]}  d5 {[%clk 0:02:57]} 9. d3 {[%clk 0:02:45]}  dxe4 {[%clk 0:02:52]} 10. dxe4 {[%clk 0:02:45]}  Bb7 {[%clk 0:02:48]} 11. Rd1 {[%clk 0:02:45]}  Qc8 {[%clk 0:02:47]} 12. Bg5 {[%clk 0:02:45]}  h6 {[%clk 0:02:46]} 13. Bh4 {[%clk 0:02:44]}  g5 {[%clk 0:02:39]} 14. Bg3 {[%clk 0:02:44]}  Bd6 {[%clk 0:02:39]} 15. Nbd2 {[%clk 0:02:40]}  Re8 {[%clk 0:02:22]} 16. Nf1 {[%clk 0:02:39]}  Na5 {[%clk 0:02:22]} 17. Bc2 {[%clk 0:02:34]}  Nc4 {[%clk 0:02:20]} 18. b3 {[%clk 0:02:30]}  Na3 {[%clk 0:02:13]} 19. Bd3 {[%clk 0:02:30]}  Bc6 {[%clk 0:01:57]} 20. N3d2 {[%clk 0:02:20]}  Qb7 {[%clk 0:01:55]} 21. f3 {[%clk 0:02:17]}  a5 {[%clk 0:01:50]} 22. Ne3 {[%clk 0:02:16]}  a4 {[%clk 0:01:50]} 23. Nf5 {[%clk 0:02:15]}  Bf8 {[%clk 0:01:49]} 24. Nf1 {[%clk 0:02:01]}  Nh5 {[%clk 0:01:46]} 25. N1e3 {[%clk 0:01:52]}  Nxg3 {[%clk 0:01:42]} 26. hxg3 {[%clk 0:01:51]}  Red8 {[%clk 0:01:32]} 27. Ng4 {[%clk 0:01:38]}  Kh7 {[%clk 0:01:12]} 28. Nxe5 {[%clk 0:01:33]}  Be8 {[%clk 0:01:06]} 29. Ng4 {[%clk 0:01:28]}  Qb6+ {[%clk 0:01:03]} 30. Kh2 {[%clk 0:01:24]}  h5 {[%clk 0:01:03]} 31. Nf6+ {[%clk 0:01:19]}  Qxf6 {[%clk 0:01:02]} 32. e5 {[%clk 0:01:17]}  Qg6 {[%clk 0:00:54]} 33. Nd4 {[%clk 0:00:57]}  Bd7 {[%clk 0:00:34]} 34. Bxg6+ {[%clk 0:00:53]}  fxg6 {[%clk 0:00:34]} 35. e6 {[%clk 0:00:52]}  Re8 {[%clk 0:00:34]} 36. Re1 {[%clk 0:00:44]}  Bg7 {[%clk 0:00:33]} 37. Qd3 {[%clk 0:00:42]}  Bc8 {[%clk 0:00:30]} 38. e7 {[%clk 0:00:37]}  c5 {[%clk 0:00:28]} 39. Nxb5 {[%clk 0:00:37]}  Nxb5 {[%clk 0:00:26]} 40. Qxb5 {[%clk 0:00:37]}  Bf5 {[%clk 0:00:26]} 41. Rac1 {[%clk 0:00:28]}  Rab8 {[%clk 0:00:25]} 42. Qxa4 {[%clk 0:00:28]}  h4 {[%clk 0:00:24]} 43. g4 {[%clk 0:00:27]}  Bd3 {[%clk 0:00:22]} 44. Qd7 {[%clk 0:00:25]}  Ra8 {[%clk 0:00:15]} 45. Qxd3 {[%clk 0:00:24]} 1-0


[Site "https://www.chess.com"]

[Event "Titled Tuesday Blitz July 18 Early 2023"]
[White "Zampronha, Wladimir Camilo"]
[Black "Liu, Casper"]
[WhiteFideId "2103087"]
[BlackFideId "1454153"]
[WhiteElo "2286"]
[BlackElo "2448"]
[Result "1/2-1/2"]
[Round "9"]
[TimeControl "180+2"]
[Date "2023.07.18"]
[WhiteClock "0:00:21"]
[BlackClock "0:01:32"]
[Board "124"]

1. e4 {[%clk 0:02:08]}  c5 {[%clk 0:02:58]} 2. Nf3 {[%clk 0:02:06]}  d6 {[%clk 0:02:59]} 3. d4 {[%clk 0:02:04]}  cxd4 {[%clk 0:03:00]} 4. Nxd4 {[%clk 0:02:04]}  Nf6 {[%clk 0:03:00]} 5. Nc3 {[%clk 0:02:04]}  Nc6 {[%clk 0:03:01]} 6. Bg5 {[%clk 0:02:03]}  Bd7 {[%clk 0:03:02]} 7. Qd2 {[%clk 0:02:02]}  Rc8 {[%clk 0:03:03]} 8. O-O-O {[%clk 0:02:02]}  Nxd4 {[%clk 0:03:03]} 9. Qxd4 {[%clk 0:02:02]}  Qa5 {[%clk 0:03:04]} 10. f4 {[%clk 0:01:57]}  Rxc3 {[%clk 0:03:04]} 11. Qxc3 {[%clk 0:01:53]}  Qxc3 {[%clk 0:03:03]} 12. bxc3 {[%clk 0:01:54]}  Nxe4 {[%clk 0:03:04]} 13. Bh4 {[%clk 0:01:42]}  g5 {[%clk 0:03:02]} 14. fxg5 {[%clk 0:01:40]}  Bg7 {[%clk 0:03:01]} 15. Bd3 {[%clk 0:01:28]}  Nxc3 {[%clk 0:03:00]} 16. Rde1 {[%clk 0:01:26]}  Nxa2+ {[%clk 0:03:00]} 17. Kb1 {[%clk 0:01:08]}  Nc3+ {[%clk 0:03:00]} 18. Kc1 {[%clk 0:01:09]}  Na2+ {[%clk 0:03:01]} 19. Kb1 {[%clk 0:01:07]}  Nc3+ {[%clk 0:03:01]} 20. Kc1 {[%clk 0:01:08]}  Be6 {[%clk 0:02:56]} 21. Kd2 {[%clk 0:01:06]}  a5 {[%clk 0:02:52]} 22. Ra1 {[%clk 0:00:55]}  Nd5 {[%clk 0:02:51]} 23. Rab1 {[%clk 0:00:46]}  Bc3+ {[%clk 0:02:49]} 24. Ke2 {[%clk 0:00:43]}  Nb4 {[%clk 0:01:51]} 25. Be1 {[%clk 0:00:38]}  Bg4+ {[%clk 0:01:48]} 26. Kf2 {[%clk 0:00:37]}  Bd4+ {[%clk 0:01:40]} 27. Kg3 {[%clk 0:00:36]}  h5 {[%clk 0:01:32]} 28. Bxb4 {[%clk 0:00:34]}  Be5+ {[%clk 0:01:31]} 29. Kf2 {[%clk 0:00:31]}  Bd4+ {[%clk 0:01:31]} 30. Kg3 {[%clk 0:00:30]}  Be5+ {[%clk 0:01:31]} 31. Kf2 {[%clk 0:00:30]}  Bd4+ {[%clk 0:01:32]} 32. Kg3 {[%clk 0:00:21]} 1/2-1/2


[Site "https://www.chess.com"]

[Event "Titled Tuesday Blitz July 18 Early 2023"]
[White "Nunez V, Gustavo Eduardo"]
[Black "Peiris, T G M"]
[WhiteFideId "4403690"]
[BlackFideId "9901310"]
[WhiteElo "2442"]
[BlackElo "2277"]
[Result "0-1"]
[Round "9"]
[TimeControl "180+2"]
[Date "2023.07.18"]
[WhiteClock "0:00:02"]
[BlackClock "0:00:11"]
[Board "125"]

1. e4 {[%clk 0:01:53]}  c5 {[%clk 0:02:59]} 2. Nc3 {[%clk 0:01:52]}  d6 {[%clk 0:02:57]} 3. f4 {[%clk 0:01:53]}  g6 {[%clk 0:02:54]} 4. Nf3 {[%clk 0:01:53]}  Bg7 {[%clk 0:02:54]} 5. Bb5+ {[%clk 0:01:53]}  Nc6 {[%clk 0:02:48]} 6. Bxc6+ {[%clk 0:01:51]}  bxc6 {[%clk 0:02:49]} 7. O-O {[%clk 0:01:52]}  e6 {[%clk 0:02:43]} 8. d3 {[%clk 0:01:52]}  f5 {[%clk 0:02:43]} 9. Qe1 {[%clk 0:01:51]}  Ne7 {[%clk 0:02:43]} 10. exf5 {[%clk 0:01:46]}  exf5 {[%clk 0:02:42]} 11. Ng5 {[%clk 0:01:40]}  O-O {[%clk 0:02:42]} 12. Ne6 {[%clk 0:01:40]}  Bxe6 {[%clk 0:02:38]} 13. Qxe6+ {[%clk 0:01:41]}  Kh8 {[%clk 0:02:39]} 14. Re1 {[%clk 0:01:41]}  Nc8 {[%clk 0:02:29]} 15. Bd2 {[%clk 0:01:33]}  Nb6 {[%clk 0:02:29]} 16. a4 {[%clk 0:01:28]}  a5 {[%clk 0:02:28]} 17. g3 {[%clk 0:01:21]}  Rf6 {[%clk 0:02:28]} 18. Qe2 {[%clk 0:01:20]}  Qd7 {[%clk 0:02:25]} 19. Qf3 {[%clk 0:01:20]}  d5 {[%clk 0:02:22]} 20. Re2 {[%clk 0:01:13]}  Re8 {[%clk 0:02:19]} 21. Rae1 {[%clk 0:01:12]}  Rfe6 {[%clk 0:02:20]} 22. Rxe6 {[%clk 0:01:11]}  Rxe6 {[%clk 0:02:20]} 23. Rxe6 {[%clk 0:01:12]}  Qxe6 {[%clk 0:02:20]} 24. b3 {[%clk 0:01:08]}  Bd4+ {[%clk 0:02:18]} 25. Kg2 {[%clk 0:01:08]}  c4 {[%clk 0:01:59]} 26. Ne2 {[%clk 0:00:57]}  Bc5 {[%clk 0:01:54]} 27. Bxa5 {[%clk 0:00:48]}  cxb3 {[%clk 0:01:51]} 28. cxb3 {[%clk 0:00:45]}  d4 {[%clk 0:01:32]} 29. b4 {[%clk 0:00:44]}  Nd5 {[%clk 0:01:00]} 30. bxc5 {[%clk 0:00:43]}  Ne3+ {[%clk 0:01:00]} 31. Kf2 {[%clk 0:00:32]}  Ng4+ {[%clk 0:00:57]} 32. Kg1 {[%clk 0:00:32]}  Qa2 {[%clk 0:00:48]} 33. h3 {[%clk 0:00:18]}  Ne3 {[%clk 0:00:42]} 34. Bc7 {[%clk 0:00:13]}  Qb1+ {[%clk 0:00:39]} 35. Kh2 {[%clk 0:00:13]}  Nf1+ {[%clk 0:00:37]} 36. Kg2 {[%clk 0:00:13]}  Ne3+ {[%clk 0:00:37]} 37. Kh2 {[%clk 0:00:10]}  Nf1+ {[%clk 0:00:37]} 38. Kh1 {[%clk 0:00:10]}  Nd2+ {[%clk 0:00:33]} 39. Kg2 {[%clk 0:00:07]}  Nxf3 {[%clk 0:00:33]} 40. Kxf3 {[%clk 0:00:08]}  Qxd3+ {[%clk 0:00:33]} 41. Kf2 {[%clk 0:00:08]}  Qe3+ {[%clk 0:00:32]} 42. Kf1 {[%clk 0:00:08]}  Qf3+ {[%clk 0:00:26]} 43. Ke1 {[%clk 0:00:08]}  d3 {[%clk 0:00:24]} 44. Be5+ {[%clk 0:00:09]}  Kg8 {[%clk 0:00:24]} 45. Nd4 {[%clk 0:00:09]}  Qe3+ {[%clk 0:00:20]} 46. Kd1 {[%clk 0:00:09]}  d2 {[%clk 0:00:21]} 47. Nc2 {[%clk 0:00:08]}  Qxc5 {[%clk 0:00:19]} 48. Kxd2 {[%clk 0:00:08]}  Qf2+ {[%clk 0:00:18]} 49. Kd3 {[%clk 0:00:06]}  Qxg3+ {[%clk 0:00:19]} 50. Ne3 {[%clk 0:00:07]}  Qxh3 {[%clk 0:00:19]} 51. a5 {[%clk 0:00:07]}  Qf3 {[%clk 0:00:19]} 52. Bc7 {[%clk 0:00:02]}  Qe4+ {[%clk 0:00:19]} 53. Kd2 {[%clk 0:00:03]}  Qd4+ {[%clk 0:00:19]} 54. Ke2 {[%clk 0:00:03]}  h5 {[%clk 0:00:15]} 55. Bb6 {[%clk 0:00:04]}  Qb2+ {[%clk 0:00:14]} 56. Kf3 {[%clk 0:00:04]}  Qa2 {[%clk 0:00:14]} 57. Ng2 {[%clk 0:00:03]}  Qd5+ {[%clk 0:00:13]} 58. Kg3 {[%clk 0:00:03]}  Qb3+ {[%clk 0:00:13]} 59. Ne3 {[%clk 0:00:03]}  Kf7 {[%clk 0:00:12]} 60. Kh4 {[%clk 0:00:02]}  Qa2 {[%clk 0:00:11]} 61. Kg3 {[%clk 0:00:01]}  Ke6 {[%clk 0:00:11]} 62. Kf3 {[%clk 0:00:02]}  h4 {[%clk 0:00:10]} 63. Nc4 {[%clk 0:00:01]}  Qxc4 {[%clk 0:00:09]} 64. Kg2 {[%clk 0:00:02]}  Qd3 {[%clk 0:00:10]} 65. Kh2 {[%clk 0:00:02]}  Qg3+ {[%clk 0:00:10]} 66. Kh1 {[%clk 0:00:02]}  h3 {[%clk 0:00:10]} 67. Bg1 {[%clk 0:00:02]}  Qg2# {[%clk 0:00:11]} 0-1


[Site "https://www.chess.com"]